bitfinex/quotes_SOLUSD_20240821
["timestamp","ask_amount","ask_price","bid_price","bid_amount"]
[1724268759798,13.23,142.65,142.61,45.0]
[1724268760377,13.23,142.65,142.6,6.258]
[1724268761212,13.23,142.65,142.61,45.0]
[1724268761712,13.23,142.65,142.6,6.258]
[1724268763210,13.23,142.65,142.58,15.7246]
[1724268763380,13.23,142.65,142.59,45.0]
[1724268767290,7.0082,142.69,142.59,58.23]
[1724268767505,13.23,142.67,142.59,58.23]
[1724268768804,13.23,142.69,142.6,0.25098]
[1724268769016,16.3167,142.71,142.62,6.0596]
[1724268769194,13.23,142.71,142.63,75.83169825]
[1724268769521,2.70535467,142.72,142.63,74.42998]
[1724268769692,13.23,142.73,142.64,20.0]
[1724268770005,13.23,142.73,142.65,59.88247683]
[1724268770888,9.18792567,142.78,142.65,58.48098]
[1724268771092,13.23,142.75,142.65,58.48098]
[1724268771317,13.23,142.75,142.66,20.0]
[1724268771498,13.23,142.75,142.67,45.25098]
[1724268771823,6.4134,142.78,142.68,22.8245]
[1724268772025,13.23,142.76,142.69,45.25098]
[1724268772200,13.23,142.78,142.7,21.40098815]
[1724268772393,15.1815,142.79,142.71,45.0]
[1724268772725,48.2115,142.79,142.71,45.0]
[1724268774406,33.03,142.77,142.71,45.0]
[1724268776493,33.03,142.77,142.68,22.8245]
[1724268776805,33.03,142.77,142.69,65.0]
[1724268777014,33.03,142.77,142.69,20.0]
[1724268778298,33.03,142.77,142.7,45.25098]
[1724268778501,15.1815,142.79,142.7,45.25098]
[1724268778700,20.0,142.78,142.7,45.25098]
[1724268780700,20.0,142.79,142.7,45.25098]
[1724268780896,39.4488,142.82,142.71,1.40087329]
[1724268781116,39.4488,142.82,142.73,16.2048]
[1724268781299,39.4488,142.82,142.74,45.0]
[1724268782301,20.0,142.81,142.74,45.0]
[1724268783836,19.31122697,142.83,142.74,51.2037]
[1724268784124,34.38141415,142.82,142.74,51.2037]
[1724268784430,33.03,142.82,142.74,51.2037]
[1724268786242,2.79522697,142.83,142.75,0.12549]
[1724268786441,20.0,142.83,142.75,0.12549]
[1724268787117,33.03,142.82,142.75,0.12549]
[1724268787517,33.03,142.8,142.74,51.2037]
[1724268789816,33.03,142.78,142.73,16.2048]
[1724268790425,33.03,142.8,142.73,16.2048]
[1724268791227,1.35141415,142.79,142.73,16.2048]
[1724268791413,33.03,142.8,142.73,16.2048]
[1724268792550,33.03,142.76,142.68,16.1984]
[1724268792757,20.0,142.75,142.68,16.1984]
[1724268793819,20.0,142.75,142.69,45.0]
[1724268795844,1.35141415,142.74,142.68,16.1984]
[1724268796044,20.0,142.75,142.68,16.1984]
[1724268796821,15.2735,142.83,142.69,40.0]
[1724268797036,15.2735,142.83,142.72,22.1564]
[1724268797220,20.03965784,142.84,142.73,1.40064285]
[1724268797545,33.03,142.83,142.74,1.40055401]
[1724268797847,33.03,142.83,142.74,0.25098]
[1724268798426,33.03,142.81,142.74,0.12549]
[1724268798638,33.03,142.81,142.73,65.0]
[1724268799449,33.03,142.83,142.74,0.25098]
[1724268799632,20.0,142.82,142.74,0.25098]
[1724268800038,20.0,142.82,142.74,1.65149555]
[1724268800236,20.0,142.84,142.74,0.25098]
[1724268800829,33.03,142.83,142.74,0.25098]
[1724268801038,20.0,142.82,142.74,0.25098]
[1724268802338,33.03,142.81,142.74,0.25098]
[1724268802722,33.03,142.81,142.74,1.65160336]
[1724268802924,33.03,142.81,142.74,0.12549]
[1724268803147,34.38141415,142.81,142.73,65.0]
[1724268803457,33.03,142.81,142.73,45.0]
[1724268804441,33.03,142.81,142.73,39.0]
[1724268808957,33.03,142.81,142.74,0.25098]
[1724268809249,20.0,142.82,142.74,0.25098]
[1724268810666,20.0,142.82,142.75,16.2957]
[1724268810955,20.0,142.82,142.76,45.25098]
[1724268811744,20.0,142.82,142.76,45.0]
[1724268813338,33.03,142.81,142.76,45.0]
[1724268813665,33.03,142.81,142.75,16.2957]
[1724268816269,20.0,142.82,142.76,45.0]
[1724268818649,35.79502515,142.83,142.76,45.0]
[1724268818849,20.0,142.82,142.76,45.0]
[1724268820252,33.03,142.81,142.76,45.0]
[1724268822384,33.03,142.81,142.75,16.2957]
[1724268823976,20.0,142.82,142.75,16.2957]
[1724268824180,20.0,142.82,142.76,45.0]
[1724268824561,13.21,142.8,142.76,45.0]
[1724268826269,33.21,142.82,142.76,45.0]
[1724268827586,13.21,142.82,142.76,45.0]
[1724268833397,7.0009,142.84,142.77,6.2848]
[1724268833558,16.4671,142.87,142.78,46.52592471]
[1724268833763,13.21,142.85,142.79,17.99979601]
[1724268834061,13.21,142.85,142.8,45.25098]
[1724268834669,7.1004019,142.9,142.81,1.40006239]
[1724268834895,13.21,142.88,142.8,45.25098]
[1724268835788,0.8527019,142.9,142.83,13.21]
[1724268835973,0.8527019,142.9,142.85,13.21]
[1724268836176,0.8527019,142.9,142.87,22.8844]
[1724268837074,0.8527019,142.9,142.88,45.0]
[1724268837464,0.8527019,142.9,142.89,0.25098]
[1724268837663,0.8527019,142.9,142.89,21.65007767]
[1724268837883,0.8527019,142.9,142.89,65.25098]
[1724268838095,0.8527019,142.9,142.89,65.0]
[1724268838269,0.8527019,142.9,142.89,45.0]
[1724268838469,0.8527019,142.9,142.88,45.0]
[1724268839566,0.8527019,142.9,142.87,22.8844]
[1724268840268,0.8527019,142.9,142.87,16.5996]
[1724268840702,32.96,142.89,142.84,21.6437]
[1724268840990,0.8527019,142.9,142.84,21.6437]
[1724268841370,32.96,142.89,142.84,21.6437]
[1724268842017,39.9604,142.85,142.76,22.2607]
[1724268842166,32.96,142.85,142.76,22.2607]
[1724268842361,32.96,142.83,142.76,26.95263751]
[1724268842659,32.96,142.83,142.76,22.2607]
[1724268843266,32.96,142.85,142.76,22.2607]
[1724268843489,32.96,142.87,142.76,22.2607]
[1724268843695,20.0,142.86,142.76,22.2607]
[1724268843907,52.96,142.86,142.76,22.2607]
[1724268844762,59.9598,142.86,142.76,22.2607]
[1724268844967,32.96,142.84,142.76,22.2607]
[1724268845189,32.96,142.84,142.77,20.0]
[1724268845861,32.96,142.84,142.76,22.2607]
[1724268846064,20.0,142.83,142.76,22.2607]
[1724268846568,32.96,142.86,142.77,0.25098]
[1724268847072,32.96,142.88,142.77,0.25098]
[1724268847280,32.96,142.88,142.77,20.25098]
[1724268847481,32.96,142.88,142.78,45.0]
[1724268847786,32.96,142.88,142.79,20.25098]
[1724268847987,32.96,142.88,142.8,45.0]
[1724268849275,40.933467,142.9,142.8,45.0]
[1724268849476,40.933467,142.9,142.81,0.25098]
[1724268849796,20.0,142.89,142.82,15.0014]
[1724268849993,20.0,142.89,142.83,45.0]
[1724268850494,0.8527019,142.9,142.83,51.5462]
[1724268852572,0.8527019,142.9,142.84,1.39986975]
[1724268852984,0.8527019,142.9,142.83,51.5462]
[1724268854805,35.16411605,142.9,142.83,6.5462]
[1724268854988,32.96,142.88,142.83,6.5462]
[1724268855174,33.8127019,142.9,142.83,6.5462]
[1724268856197,33.8127019,142.9,142.84,45.0]
[1724268856375,0.8527019,142.9,142.84,45.0]
[1724268859998,0.8527019,142.9,142.85,0.25098]
[1724268860202,0.8527019,142.9,142.85,20.25098]
[1724268860502,0.8527019,142.9,142.87,15.0521]
[1724268862603,0.8527019,142.9,142.88,1.39948241]
[1724268862991,0.8527019,142.9,142.87,15.0521]
[1724268863416,0.8527019,142.9,142.89,6.1246]
[1724268863585,32.96,142.98,142.89,26.25009]
[1724268863785,39.954,142.98,142.9,20.0]
[1724268864007,39.954,142.98,142.89,6.1246]
[1724268864305,32.96,142.98,142.89,6.1246]
[1724268864717,32.96,142.94,142.89,6.1246]
[1724268864904,1.35141415,142.93,142.87,15.0521]
[1724268865220,34.31141415,142.92,142.87,15.0521]
[1724268865391,32.96,142.92,142.87,15.0521]
[1724268866091,32.96,142.94,142.87,15.0521]
[1724268867111,39.955,142.96,142.87,15.0521]
[1724268867283,20.0,142.95,142.87,15.0521]
[1724268867486,1.35141415,142.94,142.88,45.0]
[1724268867686,20.0,142.95,142.87,15.0521]
[1724268868103,20.0,142.95,142.88,45.0]
[1724268868308,32.96,142.96,142.87,15.0521]
[1724268871627,39.9535,142.99,142.87,48.0121]
[1724268871796,32.96,142.97,142.88,20.0]
[1724268873394,1.35141415,142.97,142.88,20.0]
[1724268873613,1.35141415,142.97,142.89,45.25098]
[1724268873920,1.35141415,142.97,142.89,0.12549]
[1724268873921,34.31141415,142.97,142.89,0.12549]
[1724268874099,34.31141415,142.97,142.88,20.0]
[1724268874296,1.2725,143.02,142.92,20.0]
[1724268874514,1.2725,143.02,142.93,86.44628]
[1724268874821,1.2725,143.02,142.94,34.3585854]
[1724268875018,1.2725,143.02,142.95,45.25098]
[1724268875205,1.2725,143.02,142.96,1.39857167]
[1724268875599,1.2725,143.02,142.97,16.01088]
[1724268875795,1.2725,143.02,142.98,77.96]
[1724268875998,1.2725,143.02,143.0,6.5174]
[1724268878130,1.2725,143.02,142.97,21.96279]
[1724268878297,1.2725,143.02,142.97,21.8373]
[1724268879194,1.2725,143.02,142.98,1.39828451]
[1724268879398,1.2725,143.02,142.97,21.8373]
[1724268879597,1.2725,143.02,142.98,0.25098]
[1724268879992,1.2725,143.02,142.98,45.25098]
[1724268882315,1.2725,143.02,142.99,1.3982701]
[1724268882511,1.2725,143.02,143.0,0.12549]
[1724268882711,1.2725,143.02,142.98,45.25098]
[1724268886930,1.2725,143.02,142.99,1.3982617]
[1724268887137,1.2725,143.02,143.0,0.12549]
[1724268887423,1.2725,143.02,143.0,1.52366079]
[1724268887841,1.2725,143.02,143.01,34.35817181]
[1724268887997,1.2725,143.02,143.01,99.60915181]
[1724268888402,1.2725,143.02,143.01,119.60915181]
[1724268889040,1.2725,143.02,143.01,98.21098]
[1724268889224,1.2725,143.02,143.01,99.60887824]
[1724268889398,1.2725,143.02,142.97,2.79987336]
[1724268889600,1.2725,143.02,142.95,32.96]
[1724268889810,1.2725,143.02,142.93,32.96]
[1724268890202,1.2725,143.02,142.98,6.183]
[1724268890514,1.2725,143.02,143.01,32.96]
[1724268890822,1.2725,143.02,143.01,34.35789042]
[1724268891203,1.2725,143.02,143.01,99.60887042]
[1724268891524,1.2725,143.02,143.01,98.21098]
[1724268892510,0.8527019,143.05,143.01,135.98317562]
[1724268892829,0.8527019,143.05,143.02,65.25098]
[1724268893615,0.8527019,143.05,143.02,20.0]
[1724268893812,0.8527019,143.05,143.01,16.3743]
[1724268896329,0.8527019,143.05,143.0,0.12549]
[1724268896531,0.8527019,143.05,143.0,65.25098]
[1724268896933,0.8527019,143.05,143.0,20.12549]
[1724268897127,0.8527019,143.05,142.98,22.7914]
[1724268897128,0.8527019,143.05,142.94,45.84472324]
[1724268897334,0.8527019,143.05,142.94,19.409385]
[1724268897335,32.96,143.02,142.94,19.409385]
[1724268897508,1.35141415,143.01,142.94,16.6084]
[1724268897912,32.96,143.02,142.94,16.6084]
[1724268898757,39.4475,143.0,142.9,16.5641]
[1724268899047,46.4409,143.0,142.9,16.5641]
[1724268899841,32.96,142.98,142.87,27.30122484]
[1724268900018,1.35141415,142.97,142.87,7.30122484]
[1724268900216,32.96,142.98,142.87,7.30122484]
[1724268900217,39.9541,142.98,142.87,7.30122484]
[1724268900449,1.35141415,142.97,142.87,20.0]
[1724268900747,32.96,142.98,142.87,20.0]
[1724268901128,32.96,142.98,142.88,32.96]
[1724268901335,1.35141415,142.97,142.88,32.96]
[1724268901539,1.35141415,142.97,142.87,20.0]
[1724268901851,1.35141415,142.97,142.89,0.12549]
[1724268902031,39.954,142.98,142.89,0.12549]
[1724268902251,32.96,142.98,142.89,0.12549]
[1724268902731,16.439,142.99,142.89,0.12549]
[1724268902941,16.439,142.99,142.9,52.96]
[1724268903143,6.4875,143.0,142.91,65.25098]
[1724268903342,15.5769,143.02,142.92,54.35876071]
[1724268903649,15.5769,143.02,142.93,65.25098]
[1724268904558,15.5769,143.02,142.94,32.96]
[1724268904758,0.6363,143.03,142.95,65.25098]
[1724268905043,0.6363,143.03,142.96,52.96]
[1724268905218,0.6363,143.03,142.97,65.25098]
[1724268905835,0.6363,143.03,142.98,52.96]
[1724268906156,0.6363,143.03,142.97,65.25098]
[1724268906157,0.6363,143.03,142.99,65.0]
[1724268906462,0.6363,143.03,142.99,20.0]
[1724268906747,0.6363,143.03,142.98,20.0]
[1724268908146,0.6363,143.03,142.99,0.25098]
[1724268908452,0.6363,143.03,142.98,20.0]
[1724268909780,0.6363,143.03,142.99,45.25098]
[1724268914630,0.6363,143.03,143.0,20.0]
[1724268914830,0.6363,143.03,143.01,45.25098]
[1724268915666,0.6363,143.03,143.01,0.25098]
[1724268916043,0.6363,143.03,143.0,45.25098]
[1724268916260,0.6363,143.03,143.0,0.25098]
[1724268916567,0.6363,143.03,143.01,16.5266]
[1724268918238,0.6363,143.03,143.01,21.21225433]
[1724268919788,0.6363,143.03,143.01,21.21171949]
[1724268920260,0.6363,143.03,143.02,0.25098]
[1724268920759,0.6363,143.03,143.02,53.21098]
[1724268921068,0.6363,143.03,143.02,57.89609949]
[1724268921370,0.6363,143.03,143.02,102.89609949]
[1724268922872,0.6363,143.03,143.02,98.21098]
[1724268923053,39.4616,143.14,143.02,102.89396606]
[1724268923252,6.5016,143.14,143.04,32.96]
[1724268923469,6.5016,143.14,143.04,102.89396606]
[1724268926858,254.2,143.16,143.04,102.89396606]
[1724268926859,15.6871,143.17,143.05,20.0]
[1724268927173,15.6871,143.17,143.08,32.96]
[1724268927482,15.6871,143.17,143.09,20.0]
[1724268927645,15.6871,143.17,143.08,32.96]
[1724268927848,0.8527019,143.19,143.14,32.96]
[1724268928077,0.8527019,143.19,143.09,29.23632324]
[1724268928287,0.8527019,143.19,143.11,8.67947755]
[1724268928446,0.8527019,143.19,143.15,32.96]
[1724268928654,0.8527019,143.19,143.16,1.64755317]
[1724268928972,0.8527019,143.19,143.16,45.25098]
[1724268929157,0.8527019,143.19,143.17,21.39654351]
[1724268929357,0.8527019,143.19,143.18,1.52192954]
[1724268929553,0.8527019,143.19,143.18,45.25098]
[1724268929869,0.8527019,143.19,143.18,65.25098]
[1724268931352,0.8527019,143.19,143.18,20.0]
[1724268931548,0.8527019,143.19,143.13,54.8232]
[1724268931857,0.8527019,143.19,143.13,74.8232]
[1724268932055,0.8527019,143.19,143.15,32.96]
[1724268932257,0.8527019,143.19,143.15,52.96]
[1724268932572,0.8527019,143.19,143.17,32.96]
[1724268932785,0.8527019,143.19,143.18,1.39630805]
[1724268933078,0.8527019,143.19,143.18,45.25098]
[1724268933457,0.8527019,143.19,143.18,0.25098]
[1724268934454,0.8527019,143.19,143.17,45.0]
[1724268935379,0.8527019,143.19,143.16,20.12549]
[1724268935589,0.8527019,143.19,143.17,0.12549]
[1724268935883,0.8527019,143.19,143.16,20.12549]
[1724268936082,0.8527019,143.19,143.17,1.39656648]
[1724268936293,15.1388,143.27,143.18,32.96]
[1724268936498,15.1388,143.27,143.17,1.39656648]
[1724268936499,15.1388,143.27,143.2,32.96]
[1724268936788,15.1388,143.27,143.19,45.25098]
[1724268937167,15.1388,143.27,143.19,0.25098]
[1724268937364,15.1388,143.27,143.18,78.21098]
[1724268937589,15.1388,143.27,143.19,20.0]
[1724268937791,12.1388,143.27,143.2,0.25098]
[1724268937977,12.1388,143.27,143.2,45.25098]
[1724268938671,12.1388,143.27,143.2,0.25098]
[1724268939072,12.1388,143.27,143.2,0.12549]
[1724268939266,12.1388,143.27,143.18,20.0]
[1724268939467,12.1388,143.27,143.19,45.25098]
[1724268941169,12.1388,143.27,143.19,0.12549]
[1724268941369,12.1388,143.27,143.18,20.0]
[1724268941578,12.1388,143.27,143.17,0.12549]
[1724268941795,32.96,143.26,143.17,0.12549]
[1724268942114,12.1388,143.27,143.17,78.08549]
[1724268942270,12.1388,143.27,143.18,20.12549]
[1724268942470,12.1388,143.27,143.19,45.12549]
[1724268942678,12.1388,143.27,143.2,20.12549]
[1724268943291,6.142,143.29,143.21,46.39621903]
[1724268943797,6.142,143.29,143.21,45.0]
[1724268944291,32.96,143.28,143.2,20.12549]
[1724268944462,32.96,143.26,143.13,41.8632]
[1724268944666,49.3842,143.24,143.13,74.8232]
[1724268945290,1.35141415,143.23,143.13,74.8232]
[1724268945597,6.5235,143.23,143.13,54.8232]
[1724268945893,1.35141415,143.22,143.13,15.6585]
[1724268946094,1.35141415,143.22,143.11,52.96]
[1724268946095,32.96,143.22,143.11,32.96]
[1724268946799,6.5235,143.23,143.13,52.96]
[1724268947113,6.5235,143.23,143.15,32.96]
[1724268947394,6.5235,143.23,143.13,32.96]
[1724268947597,6.5235,143.23,143.14,20.12549]
[1724268947787,6.5235,143.23,143.15,45.0]
[1724268947998,32.96,143.2,143.09,22.738]
[1724268948370,32.96,143.21,143.09,22.738]
[1724268948993,6.9832,143.2,143.08,52.96]
[1724268949194,15.8875,143.18,143.06,76.14555727]
[1724268949694,15.8875,143.18,143.08,32.96]
[1724268950086,15.8875,143.18,143.08,52.96]
[1724268950590,15.8875,143.18,143.09,0.12549]
[1724268950799,15.8875,143.18,143.09,65.12549]
[1724268951377,15.8875,143.18,143.1,0.12549]
[1724268952083,15.8875,143.18,143.1,45.12549]
[1724268952304,15.8875,143.18,143.11,20.0]
[1724268953372,15.8875,143.18,143.09,20.12549]
[1724268954092,6.6532,143.17,143.09,20.12549]
[1724268960485,6.6532,143.17,143.1,45.12549]
[1724268960685,6.6532,143.17,143.11,1.39713787]
[1724268960908,15.8875,143.18,143.11,20.0]
[1724268961128,15.8875,143.18,143.12,78.21098]
[1724268961407,21.3507,143.21,143.13,20.0]
[1724268962119,21.3507,143.21,143.14,45.25098]
[1724268962488,21.3507,143.21,143.13,20.0]
[1724268964016,21.3507,143.21,143.14,78.21098]
[1724268964209,15.2495,143.21,143.16,32.96]
[1724268964393,6.5103,143.24,143.17,65.12549]
[1724268964585,6.5103,143.24,143.18,0.12549]
[1724268967104,1.35141415,143.23,143.17,20.0]
[1724268967325,1.35141415,143.23,143.14,20.0]
[1724268967506,32.96,143.22,143.13,15.5204]
[1724268968088,39.4703,143.24,143.13,15.5204]
[1724268968706,39.4703,143.24,143.14,20.0]
[1724268969409,6.5103,143.24,143.15,45.25098]
[1724268969585,6.5103,143.24,143.16,20.0]
[1724268970410,1.35141415,143.23,143.16,20.0]
[1724268971300,39.4703,143.24,143.16,20.0]
[1724268973345,39.4703,143.24,143.16,24.67229418]
[1724268973491,6.9818,143.23,143.16,4.67229418]
[1724268973707,34.31141415,143.22,143.13,15.5204]
[1724268973903,34.31141415,143.22,143.14,20.0]
[1724268974306,34.31141415,143.22,143.14,24.67434973]
[1724268974520,32.96,143.22,143.14,20.0]
[1724268975713,46.4515,143.24,143.14,20.0]
[1724268975918,46.4515,143.24,143.14,24.67390812]
[1724268976706,32.96,143.22,143.14,20.0]
[1724268977212,39.4703,143.24,143.14,24.67464815]
[1724268977412,39.4703,143.24,143.15,45.25098]
[1724268978509,39.4703,143.24,143.16,4.6743492]
[1724268979125,39.4703,143.24,143.16,20.0]
[1724268979524,46.4517,143.24,143.16,20.0]
[1724268979734,8.33321415,143.23,143.15,0.12549]
[1724268979935,8.33321415,143.23,143.14,65.25098]
[1724268980227,32.96,143.22,143.14,20.0]
[1724268980437,39.9422,143.22,143.14,20.0]
[1724268980619,32.96,143.2,143.14,20.0]
[1724268981129,32.96,143.2,143.11,24.67974205]
[1724268982827,32.96,143.2,143.11,20.0]
[1724268983016,32.96,143.2,143.11,24.67915979]
[1724268983431,32.96,143.2,143.11,26.07621562]
[1724268983728,32.96,143.22,143.12,45.25098]
[1724268983935,32.96,143.22,143.13,20.0]
[1724268984431,46.4517,143.24,143.13,20.0]
[1724268984734,46.4517,143.24,143.14,45.25098]
[1724268987032,39.4703,143.24,143.14,45.25098]
[1724268987417,6.5103,143.24,143.14,78.21098]
[1724268987835,15.2743,143.25,143.15,42.2901]
[1724268988135,46.2947,143.28,143.16,78.21098]
[1724268988743,46.2947,143.28,143.17,20.0]
[1724268988914,46.2947,143.28,143.18,45.25098]
[1724268989114,22.7109019,143.33,143.21,6.1013]
[1724268989356,22.7109019,143.33,143.22,79.48156228]
[1724268989357,55.6709019,143.33,143.22,79.48156228]
[1724268989511,55.6709019,143.33,143.23,20.0]
[1724268989712,55.6709019,143.33,143.24,1.39586858]
[1724268990008,55.6709019,143.33,143.23,20.12549]
[1724268991209,62.6478019,143.33,143.23,20.12549]
[1724268991410,62.6478019,143.33,143.23,20.0]
[1724268992231,32.96,143.31,143.23,20.0]
[1724268992822,0.8527019,143.33,143.24,48.4667]
[1724268993022,0.8527019,143.33,143.25,1.39577993]
[1724268993240,32.96,143.31,143.25,20.0]
[1724268993416,32.96,143.31,143.24,15.5067]
[1724268994137,1.35141415,143.3,143.24,15.5067]
[1724268994314,34.31141415,143.29,143.24,15.5067]
[1724268994517,32.96,143.29,143.21,6.1013]
[1724268994719,2.20411605,143.33,143.24,32.96]
[1724268994924,0.8527019,143.33,143.25,1.39584795]
[1724268995125,0.8527019,143.33,143.23,0.12549]
[1724268995359,33.8127019,143.33,143.25,20.0]
[1724268995516,33.8127019,143.33,143.23,0.25098]
[1724268997538,33.3127019,143.33,143.23,0.25098]
[1724268998248,32.96,143.31,143.23,0.12549]
[1724268999525,33.3127019,143.33,143.23,0.12549]
[1724268999727,33.3127019,143.33,143.23,0.25098]
[1724269000148,33.3127019,143.33,143.23,0.12549]
[1724269000526,33.3127019,143.33,143.23,0.25098]
[1724269001333,40.2896019,143.33,143.23,0.25098]
[1724269001857,33.3127019,143.33,143.23,0.25098]
[1724269003926,40.2896019,143.33,143.23,0.25098]
[1724269004441,6.9775,143.32,143.23,0.25098]
[1724269004754,6.9775,143.32,143.22,65.0]
[1724269005165,32.96,143.31,143.22,65.0]
[1724269005352,32.96,143.24,143.16,15.2397]
[1724269005656,32.96,143.22,143.16,15.2397]
[1724269005824,32.96,143.24,143.16,15.2397]
[1724269006233,32.46,143.24,143.16,15.2397]
[1724269006738,39.9423,143.22,143.13,22.6661]
[1724269007040,32.96,143.22,143.13,22.6661]
[1724269007372,6.0528,143.24,143.13,92.29733135]
[1724269007557,22.9784,143.27,143.14,7.9917538]
[1724269007848,32.96,143.25,143.14,7.9917538]
[1724269008088,32.96,143.25,143.15,52.96]
[1724269008237,48.9582,143.27,143.17,32.96]
[1724269008428,48.9582,143.27,143.18,45.25098]
[1724269008429,15.9982,143.27,143.18,45.25098]
[1724269008668,6.0528,143.28,143.18,45.25098]
[1724269009451,32.96,143.27,143.18,45.25098]
[1724269009643,6.0528,143.28,143.19,15.9665]
[1724269009841,32.96,143.27,143.2,45.0]
[1724269010048,32.96,143.23,143.16,15.9665]
[1724269010255,39.9409,143.25,143.17,20.0]
[1724269010459,48.0003,143.26,143.17,20.0]
[1724269012870,62.586,143.24,143.13,22.3217]
[1724269013050,41.02,143.22,143.13,22.3217]
[1724269013387,41.02,143.2,143.13,15.8843]
[1724269013865,48.0032,143.2,143.1,22.2129]
[1724269014542,41.02,143.2,143.11,1.39716373]
[1724269015858,41.02,143.2,143.11,46.39716373]
[1724269016367,48.0022,143.22,143.12,0.25098]
[1724269016547,41.02,143.2,143.1,22.2129]
[1724269016741,41.02,143.2,143.11,20.0]
[1724269017466,6.9837,143.19,143.11,20.0]
[1724269019090,6.9822,143.23,143.12,1.52272322]
[1724269019280,6.9823,143.22,143.12,45.25098]
[1724269019476,6.9823,143.22,143.13,20.0]
[1724269020279,41.02,143.23,143.13,20.0]
[1724269020460,41.02,143.21,143.13,20.0]
[1724269020888,41.02,143.21,143.11,20.0]
[1724269021972,48.0018,143.23,143.11,61.02]
[1724269022176,6.9823,143.22,143.12,45.25098]
[1724269022376,41.02,143.23,143.13,20.0]
[1724269022550,48.0018,143.23,143.13,20.0]
[1724269023165,41.02,143.23,143.13,20.0]
[1724269023485,41.02,143.21,143.13,20.0]
[1724269023674,6.9823,143.22,143.13,20.0]
[1724269023877,55.22516175,143.23,143.13,20.0]
[1724269024867,48.0028,143.21,143.13,20.0]
[1724269025091,41.02,143.21,143.13,20.0]
[1724269025987,55.22526175,143.23,143.13,20.0]
[1724269026484,6.9823,143.22,143.14,45.0]
[1724269026667,6.9828,143.21,143.13,20.0]
[1724269026872,6.9828,143.21,143.12,1.64796325]
[1724269027078,6.9828,143.21,143.11,20.0]
[1724269027266,6.9823,143.22,143.11,20.0]
[1724269027466,6.9833,143.2,143.11,20.0]
[1724269027664,41.02,143.19,143.11,20.0]
[1724269028182,48.0038,143.19,143.11,20.0]
[1724269028378,49.75032116,143.19,143.11,19.3637]
[1724269028579,41.02,143.17,143.1,22.2129]
[1724269029068,41.02,143.19,143.1,22.2129]
[1724269029672,41.02,143.19,143.1,15.8843]
[1724269029872,48.0037,143.19,143.1,15.8843]
[1724269030199,41.02,143.19,143.1,15.8843]
[1724269030372,41.02,143.19,143.11,20.0]
[1724269030699,39.3232,143.2,143.11,20.0]
[1724269031596,32.84,143.22,143.12,7.66946929]
[1724269031887,32.84,143.24,143.14,16.3482]
[1724269032063,32.84,143.24,143.15,65.12549]
[1724269032385,8.72755267,143.23,143.15,45.25098]
[1724269032687,39.8213,143.24,143.14,16.3482]
[1724269032862,39.8213,143.24,143.15,20.0]
[1724269033279,8.72781183,143.23,143.14,16.3482]
[1724269033588,32.84,143.22,143.14,16.3482]
[1724269033798,32.84,143.24,143.15,45.25098]
[1724269034301,39.8213,143.24,143.15,45.25098]
[1724269034968,1.74584025,143.23,143.15,45.25098]
[1724269035166,32.84,143.24,143.15,45.25098]
[1724269035677,39.8207,143.26,143.15,45.25098]